fUST/lending_fUST_20251021
["ID","MTS","AMOUNT","RATE_DAILY","PERIOD"]
[391943905,1761018639319,-197.77374877,0.00030136,14]
[391943906,1761018639330,-500.0,0.00030137,2]
[391943907,1761018639341,-561.86635561,0.00030137,2]
[391943908,1761018639351,-500.0,0.00030137,2]
[391943909,1761018639362,-500.0,0.00030137,2]
[391943910,1761018639373,-500.0,0.00030137,2]
[391943911,1761018639385,-500.0,0.00030137,2]
[391943912,1761018639398,-500.0,0.00030137,2]
[391943913,1761018639409,-500.0,0.00030137,2]
[391943914,1761018639423,-9647.26,0.000302,7]
[391943915,1761018639434,-760.0,0.00030388,2]
[391943916,1761018639445,-153.096367,0.00030409,2]
[391943917,1761018639455,-151.100433,0.00030409,2]
[391943918,1761018639467,-200.0,0.00030936,2]
[391943919,1761018639477,-598.99440257,0.0003098,2]
[391943920,1761018639488,-613.43782334,0.0003098,2]
[391943921,1761018639499,-1391.58343575,0.00031,120]
[391943922,1761018639509,-5653.63641083,0.00031,120]
[391943923,1761018639520,-648.33563737,0.00031,120]
[391943924,1761018639531,-357.41094605,0.00031,120]
[391943925,1761018639542,-247.39937067,0.00031,120]
[391943926,1761018639552,-304.94465825,0.00031,120]
[391943927,1761018639897,-1294.76971444,0.00031,120]
[391943929,1761018639930,-1461.2438547,0.00031,120]
[391943930,1761018639953,-403.05172659,0.00031,120]
[391943931,1761018639963,-4205.0,0.00031361,2]
[391943932,1761018639972,-983.0,0.00031362,2]
[391943933,1761018639981,-632.0,0.00031362,2]
[391943934,1761018639991,-2164.0,0.00031362,2]
[391943935,1761018640000,-251.32,0.00031362,2]
[391943936,1761018640009,-292.404,0.00031362,2]
[391943937,1761018640019,-150.413,0.00031362,2]
[391943938,1761018640028,-413.181,0.00031362,2]
[391943940,1761018640038,-428.678,0.00031362,2]
[391943942,1761018640047,-506.74480083,0.00031535,7]
[391943944,1761018640058,-1500.0,0.00031658,7]
[391943946,1761018640067,-626.66953879,0.00031775,2]
[391943948,1761018640076,-168.0,0.00031856,2]
[391943950,1761018640086,-5653.63641083,0.000319,120]
[391943953,1761018640096,-1391.58343575,0.000319,120]
[391943955,1761018640106,-648.33563737,0.000319,120]
[391943957,1761018640118,-357.41094605,0.000319,120]
[391943959,1761018640129,-247.39937067,0.000319,120]
[391943961,1761018640138,-304.94465825,0.000319,120]
[391943963,1761018640147,-1294.76971444,0.000319,120]
[391943965,1761018640157,-1461.2438547,0.000319,120]
[391943967,1761018640167,-153.096367,0.00031988,4]
[391943969,1761018640178,-540.0,0.00032069,2]
[391943971,1761018640188,-153.096367,0.00032114,2]
[391943974,1761018640198,-151.100433,0.00032114,2]
[391943976,1761018640208,-250.0,0.00032144,2]
[391943978,1761018640218,-153.096367,0.00032321,10]
[391943981,1761018640229,-823.0,0.00032397,2]
[391943983,1761018640240,-600.0,0.00032397,2]
[391943985,1761018640249,-1500.0,0.0003248,7]
[391943987,1761018640258,-598.99440257,0.0003249,2]
[391943989,1761018640267,-613.43782334,0.0003249,2]
[391943991,1761018640277,-542.0,0.00032498,7]
[391943993,1761018640287,-9647.26,0.000325,7]
[391943995,1761018640297,-168.0,0.00032534,2]
[391943997,1761018640307,-500.0,0.0003257,5]
[391943999,1761018640316,-500.0,0.0003257,30]
[391944001,1761018640327,-500.0,0.0003257,5]
[391944003,1761018640336,-500.0,0.0003257,5]
[391944005,1761018640345,-500.0,0.0003257,5]
[391944007,1761018640355,-500.0,0.0003257,5]
[391944009,1761018640364,-500.0,0.0003257,30]
[391944011,1761018640373,-500.0,0.00032604,12]
[391944013,1761018640383,-500.0,0.00032604,12]
[391944015,1761018640392,-800.0,0.00032638,2]
[391944017,1761018640401,-800.0,0.00032643,2]
[391944019,1761018640411,-403.05172659,0.00032652,2]
[391944021,1761018640420,-800.0,0.00032683,2]
[391944023,1761018640429,-800.0,0.00032724,2]
[391944025,1761018640438,-600.0,0.00032735,2]
[391944027,1761018640447,-168.0,0.00032768,2]
[391944029,1761018640456,-800.0,0.00032788,2]
[391944031,1761018640466,-153.096367,0.00032791,10]
[391944033,1761018640475,-151.100433,0.00032791,10]
[391944035,1761018640484,-21779.09692877,0.0003283,30]
[391944037,1761018640493,-598.99440257,0.00032866,2]
[391944039,1761018640503,-613.43782334,0.00032866,2]
[391944041,1761018640512,-500.0,0.00032873,5]
[391944042,1761018640521,-500.0,0.00032873,5]
[391944044,1761018640531,-250.85868638,0.00032873,5]
[391944046,1761018640541,-158.43313369,0.00032873,2]
[391944048,1761018640551,-2803.78675126,0.00032876,2]
[391944050,1761018640560,-3119.19,0.00032876,120]
[391944052,1761018640570,-5653.63641083,0.000329,120]
[391944054,1761018640579,-1391.58343575,0.000329,120]
[391944056,1761018640589,-648.33563737,0.000329,120]
[391944058,1761018640598,-357.41094605,0.000329,120]
[391944060,1761018640607,-247.39937067,0.000329,120]
[391944062,1761018640616,-304.94465825,0.000329,120]
[391944064,1761018640626,-1294.76971444,0.000329,120]
[391944066,1761018640637,-1461.2438547,0.000329,120]
[391944068,1761018640648,-540.0,0.0003294,7]
[391944070,1761018640657,-864.0,0.00032952,30]
[391944072,1761018640667,-7239.8703911,0.00032989,2]
[391944074,1761018640676,-1798.2927532,0.00032989,2]
[391944076,1761018640686,-31271.30813268,0.00032989,2]
[391944116,1761018641041,-41455.83701902,0.00032989,2]
[391944118,1761018641051,-1796.98320771,0.0003299,2]
[391944120,1761018641060,-1840.31347002,0.0003299,2]
[391944122,1761018641069,-292.52474511,0.00032999,7]
[391944124,1761018641079,-250.0,0.00032999,7]
[391944126,1761018641088,-250.0,0.00032999,7]
[391944128,1761018641098,-250.0,0.00032999,7]
[391944130,1761018641107,-250.0,0.00032999,7]
[391944132,1761018641116,-496.47127164,0.00032999,7]
[391944134,1761018641126,-282.08533457,0.00032999,7]
[391944136,1761018641135,-514.84070869,0.00032999,7]
[391944138,1761018641145,-533.88981491,0.00032999,7]
[391944140,1761018641154,-553.64373807,0.00032999,7]
[391944142,1761018641163,-574.12855637,0.00032999,7]
[391944144,1761018641172,-595.37131296,0.00032999,7]
[391944146,1761018641182,-617.40005154,0.00032999,7]
[391944148,1761018641191,-640.24385345,0.00032999,7]
[391944150,1761018641200,-663.93287602,0.00032999,7]
[391944152,1761018641209,-688.49839244,0.00032999,7]
[391944154,1761018641218,-713.97283296,0.00032999,7]
[391944156,1761018641228,-740.38982778,0.00032999,7]
[391944158,1761018641237,-767.7842514,0.00032999,7]
[391944160,1761018641246,-796.19226871,0.00032999,7]
[391944161,1761018641256,-825.65138265,0.00032999,7]
[391944162,1761018641266,-302247.71476956,0.00033,7]
[391944163,1761018641277,-1097.26320787,0.00033,7]
[391944164,1761018641288,-2344.83202401,0.00033,7]
[391944165,1761018641299,-705.01073918,0.00033,7]
[391944168,1761018641316,-41933.0736251,0.00033,7]
[391944170,1761018641328,-9560.51748462,0.00033,7]
[391944172,1761018641339,-829.28017256,0.00033,7]
[391944567,1761018643610,-343.67951786,0.00033,7]
[391944667,1761018646697,-283.83607278,0.0003299,10]
[391944668,1761018647867,-1816.14421722,0.0003299,10]
[391944673,1761019098689,6850.0,0.00030137,120]
[391944676,1761019326097,-248.98024892,0.00024075,2]
[391944677,1761019327685,-249.12172199,0.00024075,2]
[391944678,1761019331325,-457.4733056,0.00024075,2]
[391944679,1761019334978,-200.75172515,0.00024075,2]
[391944680,1761019336734,-319.58095645,0.00024075,2]
[391944681,1761019338967,-429.36506362,0.00024075,2]
[391944682,1761019341923,150.0,0.00022102,2]
[391944683,1761019343972,-168.0,0.00024075,2]
[391944684,1761019345595,-290.68179119,0.00024075,2]
[391944685,1761019349395,-195.02793819,0.00024075,2]
[391944686,1761019353273,-156.55367686,0.00024075,2]
[391944687,1761019356060,-229.55345096,0.00024075,2]
[391944688,1761019358121,-186.54607078,0.00024075,2]
[391944689,1761019361864,-203.51778503,0.00024075,2]
[391944690,1761019365916,-153.0,0.00024075,2]
[391944691,1761019370651,-326.59993836,0.00024075,2]
[391944692,1761019372339,-172.905253,0.00024075,2]
[391944693,1761019374652,-172.5,0.00024075,2]
[391944694,1761019376738,-295.992915,0.00024075,2]
[391944695,1761019379590,-486.40397188,0.00024075,2]
[391944696,1761019381347,-258.90655115,0.00024075,2]
[391944697,1761019382554,300.0,0.00024074,2]
[391944698,1761019383074,-447.06699253,0.00024075,2]
[391944699,1761019384593,-166.0,0.00024075,2]
[391944700,1761019387327,-233.05713078,0.00024075,2]
[391944701,1761019390651,-377.45766342,0.00024075,2]
[391944702,1761019393314,-170.01828604,0.00024075,2]
[391944703,1761019395725,-181.20721973,0.00024075,2]
[391944704,1761019397847,-206.43739216,0.00024075,2]
[391944705,1761019407360,150.0,0.00022076,2]
[391944706,1761019408618,-500.0,0.00024075,2]
[391944707,1761019409541,2536.28998704,0.00024075,2]
[391944708,1761019410911,-341.77701539,0.00024075,2]
[391944709,1761019412727,-285.61960498,0.00024075,2]
[391944710,1761019414417,-272.97207488,0.00024075,2]
[391944711,1761019416834,-308.17555582,0.00024075,2]
[391944712,1761019418604,-168.55375808,0.00024075,2]
[391944713,1761019420728,-168.78025044,0.00024075,2]
[391944714,1761019423386,-241.56850385,0.00024075,2]
[391944715,1761019425030,-300.0,0.00024075,2]
[391944716,1761019426564,-301.75947759,0.00024075,2]
[391944717,1761019428053,-128.08671018,0.00024075,2]
[391944718,1761019428075,-129.75936,0.00024075,2]
[391944719,1761019429531,-258.15826098,0.00024075,2]
[391944720,1761019431792,-300.0248526,0.00024075,2]
[391944721,1761019433208,-231.6645496,0.00024075,2]
[391944722,1761019434913,-400.16,0.00024075,2]
[391944723,1761019436993,-282.40713663,0.00024075,2]
[391944724,1761019439086,-271.72578774,0.00024075,2]
[391944725,1761019442471,-475.36039806,0.00024075,2]
[391944726,1761019442533,300.0,0.00024074,2]
[391944727,1761019444110,-186.8754605,0.00024075,2]
[391944728,1761019459992,-296.26846397,0.00024075,2]
[391944729,1761019462215,160.0,0.00013699,2]
[391944730,1761019462253,-248.60096977,0.00024075,2]
[391944731,1761019462562,260.0,0.00014247,2]
[391944732,1761019462912,360.0,0.00014795,2]
[391944733,1761019463243,460.0,0.00015342,2]
[391944734,1761019463935,620.0,0.0001589,2]
[391944735,1761019466416,-179.90306882,0.00024075,2]
[391944736,1761019468650,-339.12465709,0.00024075,2]
[391944737,1761019470193,-396.045265,0.00024075,2]
[391944738,1761019472824,-293.08938649,0.00024075,2]
[391944739,1761019473158,150.0,0.00022094,2]
[391944740,1761019485386,-365.7037151,0.00024075,2]
[391944741,1761019487383,-170.12956896,0.00024075,2]
[391944742,1761019502799,300.0,0.00024074,2]
[391944743,1761019503682,-357.5012945,0.00024075,2]
[391944744,1761019507424,-161.10587092,0.00024075,2]
[391944745,1761019510166,-233.62416358,0.00024075,2]
[391944746,1761019511771,-515.39950302,0.00024075,2]
[391944747,1761019515050,-153.0,0.00024075,2]
[391944748,1761019538422,150.0,0.00022104,2]
[391944749,1761019563199,300.0,0.00024074,2]
[391944750,1761019582137,160.0,0.00013699,2]
[391944751,1761019582460,260.0,0.00014247,2]
[391944752,1761019582793,360.0,0.00014795,2]
[391944753,1761019583117,460.0,0.00015342,2]
[391944754,1761019583436,720.0,0.0001589,2]
[391944755,1761019603951,150.0,0.00022099,2]
[391944756,1761019622549,300.0,0.00024074,2]
[391944758,1761019630255,477.786391,0.00013699,2]
[391944759,1761019630473,477.786391,0.00020187,2]
[391944760,1761019682419,300.0,0.00024074,2]
[391944765,1761019742613,300.0,0.00024074,2]
[391944768,1761019802132,300.0,0.00024074,2]
[391944769,1761019827005,630284.44269817,0.00024,2]
[391944774,1761019834884,-445.13278348,0.0002399,10]
[391944797,1761019836408,-321.76,0.0002399,10]
[391944800,1761019836421,-2627.50721652,0.0002399,10]
[391944802,1761019836431,-1175.36083402,0.00024,2]
[391944998,1761019838251,-238.13936115,0.00024,2]
[391945022,1761019838522,-3130.03562622,0.00024,2]
[391945023,1761019838577,-12816.83824392,0.00024,2]
[391945024,1761019838589,-22957.6707842,0.00024,2]
[391945025,1761019838600,-13824.11310235,0.00024,2]
[391945027,1761019838613,-4369.2,0.00024,2]
[391945029,1761019838625,-989.64376497,0.00024,2]
[391945060,1761019838918,-310214.535584,0.00024,2]
[391945062,1761019838928,-3754.36826667,0.00024075,2]
[391945064,1761019838938,-1326.5,0.00024075,2]
[391945066,1761019838947,-300.0,0.00024555,20]
[391945068,1761019838957,-300.0,0.00024555,20]
[391945070,1761019838967,-300.0,0.00024555,20]
[391945072,1761019838980,-300.0,0.00024555,20]
[391945074,1761019838990,-300.0,0.00024555,20]
[391945076,1761019838999,-300.0,0.00024555,20]
[391945078,1761019839009,-300.0,0.00024555,20]
[391945080,1761019839019,-300.0,0.00024555,20]
[391945082,1761019839029,-300.0,0.00024555,20]
[391945084,1761019839039,-300.0,0.00024555,20]
[391945086,1761019839050,-300.0,0.00024555,20]
[391945088,1761019839063,-300.0,0.00024555,20]
[391945090,1761019839073,-300.0,0.00024555,20]
[391945092,1761019839083,-300.0,0.00024555,20]
[391945094,1761019839093,-300.0,0.00024555,20]
[391945096,1761019839103,-663.39016948,0.00024555,2]
[391945098,1761019839113,-274.15,0.00024648,10]
[391945100,1761019839123,-600.0,0.00025045,20]
[391945102,1761019839135,-500.0,0.00025526,2]
[391945104,1761019839145,-420.0,0.00026105,2]
[391945106,1761019839155,-3185.28437999,0.000266,2]
[391945108,1761019839164,-753.78256063,0.000266,2]
[391945110,1761019839173,-1175.22205216,0.000266,2]
[391945112,1761019839183,-165.48425282,0.000266,2]
[391945114,1761019839192,-477.786391,0.00026676,2]
[391945116,1761019839201,-1257.88824539,0.00026687,2]
[391945118,1761019839212,-1479.4859821,0.00026687,2]
[391945120,1761019839223,-370000.0,0.00026697,2]
[391945122,1761019839233,-6753.09,0.000267,7]
[391945124,1761019839243,-500.0,0.00026786,2]
[391945126,1761019839252,-500.0,0.00026796,2]
[391945128,1761019839262,-500.0,0.00026796,2]
[391945130,1761019839271,-500.0,0.00026796,2]
[391945132,1761019839281,-500.0,0.00026796,2]
[391945134,1761019839290,-500.0,0.00026796,2]
[391945136,1761019839299,-500.0,0.00026796,2]
[391945138,1761019839309,-500.0,0.00026796,2]
[391945140,1761019839318,-500.0,0.00026796,2]
[391945142,1761019839327,-500.0,0.00026796,2]
[391945144,1761019839336,-527.96402978,0.00026796,2]
[391945146,1761019839346,-403.05172659,0.00027051,2]
[391945148,1761019839355,-363.589,0.00027516,16]
[391945150,1761019839364,-720.0,0.0002755,30]
[391945152,1761019839373,-753.78256062,0.00027579,2]
[391945154,1761019839382,-179.65864857,0.00027936,2]
[391945156,1761019839392,-587.0,0.00028307,2]
[391945158,1761019839401,-165.48425278,0.00028314,2]
[391945160,1761019839410,-753.78256062,0.00028559,2]
[391945162,1761019839419,-160.0,0.0002939,3]
[391945165,1761019839439,-200.0,0.0002951,2]
[391945167,1761019839448,-753.78256062,0.00029538,2]
[391945169,1761019839457,-182.12114877,0.00029773,2]
[391945171,1761019839466,-327.49024971,0.00029773,2]
[391945173,1761019839477,-3185.28437998,0.00030028,2]
[391945175,1761019839487,-165.48425278,0.00030028,2]
[391945177,1761019839496,-200.0,0.000301,7]
[391945179,1761019839506,-451.31848396,0.00030137,2]
[391945181,1761019839515,-864.0,0.00030305,30]
[391945183,1761019839524,-154.533535,0.00030409,2]
[391945185,1761019839533,-173.097524,0.00030437,2]
[391945187,1761019839542,-200.0,0.0003051,2]
[391945189,1761019839551,-753.78256062,0.00030517,2]
[391945191,1761019839560,-823.0,0.00030695,2]
[391945193,1761019839570,-202.71,0.0003091,7]
[391945195,1761019839579,-1022.87069829,0.00031,120]
[391945197,1761019839588,-3957.54548759,0.00031,120]
[391945199,1761019839597,-203.29643883,0.00031,120]
[391945201,1761019839607,-164.93291378,0.00031,120]
[391945203,1761019839616,-556.6333743,0.00031,120]
[391945205,1761019839625,-178.70547303,0.00031,120]
[391945207,1761019839634,-259.33425495,0.00031,120]
[391945209,1761019839644,-1058.8964321,0.00031,120]
[391945706,1761019843853,-3e-08,0.00031,120]
[391945963,1761019847009,-770.70574043,0.00024953,2]
[391945965,1761019847018,-319.09425957,0.00031,120]
[391947732,1761019865923,-152.11999997,0.00023998,2]
[391947936,1761019867986,-147.88000003,0.00023998,2]
[391947938,1761019868013,-195.23332667,0.00023999,2]
[391948219,1761019871292,-158.22298461,0.00023999,2]
[391948310,1761019872857,-146.54368872,0.00023999,2]
[391948311,1761019872879,-91.98767333,0.00023999,2]
[391948443,1761019874336,-359.58980198,0.00023999,2]
[391948663,1761019876911,-48.42252469,0.00023999,2]
[391948667,1761019876932,-117.88794138,0.00023999,2]
[391948714,1761019878383,-309.25,0.00023999,2]
[391948715,1761019882939,-72.86205862,0.00023999,2]
[391948716,1761019882964,-124.38824164,0.00023999,2]
[391948717,1761019885864,-300.46599168,0.00023999,2]
[391948718,1761019888936,-75.14576668,0.00023999,2]
[391948719,1761019888962,-156.33883806,0.00023999,2]
[391948720,1761019891988,-190.83755394,0.00023999,2]
[391948721,1761019893957,-64.89767632,0.00023999,2]
[391948722,1761019893981,-103.28351061,0.00023999,2]
[391948723,1761019911042,-280.06324043,0.00023999,2]
[391948724,1761019913333,-33.32649035,0.00023999,2]
[391948725,1761019913355,-208.86876255,0.00023999,2]
[391948726,1761019916611,-206.74150667,0.00023999,2]
[391948727,1761019921831,-84.38973078,0.00023999,2]
[391948728,1761019921858,-76.51035776,0.00023999,2]
[391948729,1761019924257,-274.28237013,0.00023999,2]
[391948730,1761019924281,-23.40762987,0.00023999,2]
[391948731,1761019928461,150.0,0.0002194,2]
[391948732,1761019929219,-150.0,0.00023935,2]
[391948733,1761019929246,-214.19240879,0.00023999,2]
[391948734,1761019931716,-174.82904481,0.00023999,2]
[391948735,1761019934094,-211.27483926,0.00023999,2]
[391948736,1761019934117,-45.02519349,0.00023999,2]
[391948737,1761019935727,-368.84436072,0.00023999,2]
[391948738,1761019939364,-86.13044579,0.00023999,2]
[391948739,1761019939387,-93.86955421,0.00023999,2]
[391948740,1761019942184,-450.77568173,0.00023999,2]
[391948741,1761019942206,-73.44235069,0.00023999,2]
[391948742,1761019945469,-78.58472962,0.00023999,2]
[391948743,1761019945492,-156.50052338,0.00023999,2]
[391948745,1761020227379,4618.06,0.00024073,2]
[391948746,1761020307205,1000.0,0.000238,7]
[391948747,1761020411713,202.83,0.00024,21]
[391948762,1761020915263,10000.01,0.00024,60]
[391948763,1761020915289,10000.01,0.00024,60]
[391948764,1761020915317,10000.01,0.00024,60]
[391948765,1761020915344,10000.01,0.00024,60]
[391948766,1761020915375,10000.01,0.00024,60]
[391948767,1761020915401,8689.86612256,0.00024,60]
[391948770,1761020921592,383.98619864,0.0002,2]
[391948771,1761020933775,5000.0,0.00024075,2]
[391948773,1761020941818,5000.0,0.00024075,2]
[391948776,1761020960042,-167.89747653,0.00023834,2]
[391948777,1761020965439,-326.184517,0.00023834,2]
[391948778,1761020967573,150.0,0.00022069,2]
[391948779,1761020968609,-300.0,0.00023834,2]
[391948782,1761020971848,-441.14,0.00023834,2]
[391948783,1761020972577,150.0,0.00016135,30]
[391948784,1761020973039,150.0,0.00017602,30]
[391948785,1761020973497,150.0,0.00019068,30]
[391948786,1761020973939,150.0,0.00020535,30]
[391948787,1761020974410,159.48,0.00022002,30]
[391948788,1761020975824,-171.36217915,0.00023469,30]
[391948789,1761020979288,-20.00782085,0.00023469,30]
[391948790,1761020979310,-229.14279427,0.00023834,2]
[391948791,1761020980841,-420.22219541,0.00023834,2]
[391948792,1761020984726,-216.45285598,0.00023834,2]
[391948793,1761020988640,-164.51740676,0.00023834,2]
[391948796,1761021005974,-161.74423854,0.00023834,2]
[391948797,1761021008149,-176.83947363,0.00023834,2]
[391948798,1761021013211,-475.89,0.0002327,10]
[391948799,1761021013239,-2395.85904188,0.00023834,2]
[391948800,1761021024644,223.70978899,0.00023834,2]
[391948837,1761021031795,-238.1393611,0.00024075,2]
[391948839,1761021031805,-150.0,0.00024075,2]
[391948841,1761021031815,-150.0,0.00024075,2]
[391948843,1761021031824,-300.0,0.00024141,2]
[391948845,1761021031833,-1619.26916065,0.00024142,2]
[391948870,1761021037990,-46021.99560369,0.00024142,2]
[391948871,1761021038000,-996.0,0.00024477,2]
[391948872,1761021038010,-300.0,0.00024478,20]
[391948873,1761021038020,-300.0,0.00024478,20]
[391948874,1761021038030,-300.0,0.00024478,20]
[391948875,1761021038039,-300.0,0.00024478,20]
[391948876,1761021038049,-300.0,0.00024478,20]
[391948877,1761021038059,-300.0,0.00024478,20]
[391948878,1761021038069,-300.0,0.00024478,20]
[391948879,1761021038079,-300.0,0.00024478,20]
[391948880,1761021038089,-300.0,0.00024478,20]
[391948881,1761021038098,-300.0,0.00024478,20]
[391948882,1761021038108,-300.0,0.00024478,20]
[391948883,1761021038117,-300.0,0.00024478,20]
[391948884,1761021038127,-300.0,0.00024478,20]
[391948885,1761021038137,-300.0,0.00024478,20]
[391948886,1761021038146,-300.0,0.00024478,20]
[391948887,1761021038156,-172.5,0.00024675,2]
[391948888,1761021038166,-1000.0,0.000248,2]
[391948889,1761021038175,-223.27,0.00024936,30]
[391948890,1761021038185,-600.0,0.00024967,20]
[391948891,1761021038197,-848.2569905,0.00025245,2]
[391948892,1761021038207,-195.0,0.00025275,2]
[391948893,1761021038216,-180.45245279,0.000254,2]
[391948894,1761021038226,-616.01451432,0.00025435,2]
[391948895,1761021038236,-1108.82612577,0.00025435,2]
[391948896,1761021038246,-1971.24644582,0.00025435,2]
[391948897,1761021038255,-3080.0725716,0.00025435,2]
[391948898,1761021038265,-160.0,0.00025525,2]
[391948899,1761021038274,-991.40958511,0.00025526,2]
[391948900,1761021038283,-1762.50592908,0.00025526,2]
[391948901,1761021038293,-2753.91551419,0.00025526,2]
[391948902,1761021038302,-3965.63834044,0.00025526,2]
[391948903,1761021038311,-5397.67440782,0.00025526,2]
[391948904,1761021038320,-1000.0,0.000258,3]
[391948905,1761021038330,-1000.0,0.000258,5]
[391948906,1761021038339,-3053.47953575,0.00025844,2]
[391948907,1761021038348,-1341.94532537,0.00025844,2]
[391948908,1761021038358,-260.0,0.00026073,2]
[391948909,1761021038368,-223.27,0.00026081,2]
[391948910,1761021038377,-420.0,0.00026176,2]
[391948911,1761021038386,-1996.69694652,0.00026361,2]
[391948912,1761021038395,-255.17,0.00026402,30]
[391948913,1761021038405,-360.0,0.00026621,2]
[391948914,1761021038419,-282.82216161,0.00026774,2]
[391948915,1761021038432,-207.48,0.000268,10]
[391948916,1761021038449,-179.67658215,0.0002689,2]
[391948917,1761021038459,-2296.5137351,0.00027,5]
[391948918,1761021038469,-160.0,0.00027011,2]
[391948919,1761021038478,-460.0,0.00027169,2]
[391948920,1761021038487,-720.0,0.00027463,30]
[391948921,1761021038497,-290.871,0.00027482,16]
[391948922,1761021038506,-560.0,0.00027717,2]
[391948923,1761021038515,-2948.36,0.00027785,10]
[391948924,1761021038524,-1348.7195649,0.00027795,2]
[391948925,1761021038534,-35441.406479,0.00027795,2]
[391948926,1761021038543,-248.25468621,0.00027869,30]
[391948927,1761021038552,-297.69,0.00028087,2]
[391948928,1761021038561,-660.0,0.00028265,2]
[391948929,1761021038571,-587.0,0.00028382,2]
[391948930,1761021038580,-760.0,0.00028813,2]
[391948931,1761021038590,-319.41719237,0.00029238,2]
[391948932,1761021038600,-574.95094626,0.00029238,2]
[391948933,1761021038610,-1022.13501558,0.00029238,2]
[391948934,1761021038619,-860.0,0.00029361,2]
[391948935,1761021038628,-494.06,0.0002955,3]
[391948936,1761021038638,-741.14,0.0002955,3]
[391948937,1761021038647,-23410.01476968,0.0002956,2]
[391948938,1761021038656,-376.36526189,0.00029671,2]
[391948939,1761021038666,-960.0,0.00029909,2]
[391948940,1761021038675,-1106.8627475,0.00029943,2]
[391948941,1761021038684,-185.2455,0.0003,2]
[391948942,1761021038697,-254.85043871,0.00030023,2]
[391948943,1761021038706,-372.12,0.00030093,2]
[391948944,1761021038716,-51196.4894967,0.0003012,7]
[391948945,1761021038725,-864.0,0.0003021,30]
[391948946,1761021038735,-173.097524,0.00030359,2]
[391948947,1761021038745,-173.097524,0.00030359,10]
[391948948,1761021038754,-154.398387,0.00030366,2]
[391948949,1761021038763,-151.100433,0.00030366,2]
[391948950,1761021038773,-1060.0,0.00030457,2]
[391948951,1761021038782,-299.57286623,0.0003046,2]
[391948952,1761021038791,-496.47127164,0.00030633,2]
[391948953,1761021038801,-1348.7195649,0.00030715,2]
[391948954,1761021038810,-823.0,0.00030774,2]
[391948955,1761021038819,-501.41905951,0.00030777,2]
[391948956,1761021038829,-902.55430711,0.00030777,2]
[391948957,1761021038839,-1604.54099042,0.00030777,2]
[391948958,1761021038848,-160.0,0.00030791,2]
[391948959,1761021038858,-392.8087668,0.00030822,30]
[391948960,1761021038867,-392.8087668,0.00030822,30]
[391948961,1761021038876,-392.8087668,0.00030822,30]
[391948962,1761021038890,-434.68690852,0.00031,120]
[391948963,1761021038901,-200.0,0.00031,7]
[391948964,1761021038911,-203.29643883,0.00031,120]
[391948965,1761021038921,-178.70547302,0.00031,120]
[391948966,1761021038932,-207.46740396,0.00031,120]
[391948967,1761021038946,-164.93291378,0.00031,120]
[391948968,1761021038957,-445.30669944,0.00031,120]
[391948969,1761021038968,-3712.38102281,0.00031,120]
[391948970,1761021038978,-1841.16725691,0.00031,120]
[391948971,1761021038988,-1160.0,0.00031004,2]
[391948972,1761021038999,-514.84070869,0.00031181,2]
[391948973,1761021039009,-590.81577372,0.00031232,2]
[391948974,1761021039019,-151.736,0.00031362,2]
[391948975,1761021039029,-262.513,0.00031362,2]
[391948976,1761021039039,-294.254,0.00031362,2]
[391948977,1761021039050,-160.0,0.00031447,4]
[391948978,1761021039060,-200.0,0.0003151,2]
[391948979,1761021039070,-1260.0,0.00031552,2]
[391948980,1761021039080,-166.97666405,0.00031638,2]